bitfinex/quotes_ETHUSD_20240716
["timestamp","ask_amount","ask_price","bid_price","bid_amount"]
[1721099835958,1.50952661,3475.1,3474.9,2.87778]
[1721099836154,1.2076012,3475.0,3474.9,2.87778]
[1721099836580,1.50952661,3475.1,3474.9,2.87778]
[1721099837129,1.50952661,3475.0,3474.9,2.87778]
[1721099837273,1.50952661,3475.1,3474.9,2.87778]
[1721099837598,1.50952661,3475.0,3474.9,2.87778]
[1721099837757,1.50952661,3475.1,3474.9,2.87778]
[1721099838398,1.20755195,3475.0,3474.9,2.87778]
[1721099839400,0.58828277,3475.0,3474.7,2.87793]
[1721099839708,2.4912,3475.2,3474.7,2.87793]
[1721099839709,1.20764958,3474.8,3474.7,2.87793]
[1721099841216,1.20764958,3474.9,3474.7,2.87793]
[1721099841392,3.70454958,3474.8,3474.7,2.87793]
[1721099841912,1.20764958,3474.9,3474.8,2.87786]
[1721099842498,1.20750862,3474.9,3474.8,2.87786]
[1721099843197,0.90559611,3474.9,3474.8,2.87786]
[1721099843397,1.20750862,3474.9,3474.8,2.87786]
[1721099844328,1.20790597,3474.9,3474.8,2.87786]
[1721099844535,1.20790471,3474.9,3474.8,2.87786]
[1721099845825,1.51022925,3475.0,3474.7,2.87794]
[1721099845988,1.51022925,3474.8,3474.7,2.87794]
[1721099846187,1.51022925,3474.8,3474.5,2.87809]
[1721099846500,2.4969,3474.5,3474.3,2.87827]
[1721099846839,4.00712925,3474.5,3474.1,2.87843]
[1721099846992,1.20856038,3474.3,3474.0,2.8785]
[1721099847188,1.51022925,3474.4,3474.1,2.87844]
[1721099847189,1.20856038,3474.2,3474.1,2.87844]
[1721099847887,1.20856038,3474.2,3474.1,5.75688]
[1721099848086,1.20856038,3474.2,3474.1,2.87844]
[1721099848632,1.20856038,3474.3,3474.2,2.87836]
[1721099848804,1.208514,3474.3,3474.2,2.87836]
[1721099848999,1.5106425,3474.4,3474.2,2.87836]
[1721099849232,1.5106425,3474.4,3474.3,2.87827]
[1721099849610,1.5106425,3474.5,3474.4,2.87819]
[1721099850222,2.3416,3474.7,3474.2,2.87831]
[1721099850438,1.20853032,3474.3,3474.2,2.87831]
[1721099850728,1.20853032,3474.3,3474.1,2.87836]
[1721099851023,1.20853032,3474.3,3474.2,2.87836]
[1721099851232,1.20853032,3474.3,3474.0,2.87847]
[1721099851522,0.90641618,3474.1,3474.0,2.87852]
[1721099853000,1.2085549,3474.2,3474.0,2.87852]
[1721099853306,3.5501549,3474.2,3474.0,2.87852]
[1721099853514,3.5501549,3474.2,3473.8,2.87868]
[1721099853690,0.90633455,3474.0,3473.8,2.87868]
[1721099853894,0.90633455,3474.0,3473.6,2.87881]
[1721099854095,0.90633455,3473.9,3473.8,2.87862]
[1721099854724,0.90633455,3474.0,3473.9,2.8786]
[1721099855211,1.2085549,3474.1,3473.9,2.8786]
[1721099856413,1.2085549,3474.1,3474.0,2.87852]
[1721099857529,1.2085549,3474.2,3474.0,2.87852]
[1721099857741,1.2085549,3474.3,3474.1,2.87844]
[1721099858107,1.2085549,3474.3,3474.2,2.87836]
[1721099858821,1.20796649,3474.3,3474.2,2.87836]
[1721099860114,1.50995812,3474.4,3474.2,2.87836]
[1721099860738,1.20812542,3474.3,3474.2,2.87836]
[1721099860953,1.20812542,3474.3,3474.1,2.87843]
[1721099860954,1.50995812,3474.3,3474.1,2.87843]
[1721099861236,1.20817099,3474.2,3474.1,2.87843]
[1721099861435,1.20817099,3474.3,3474.1,2.87843]
[1721099862139,1.20817099,3474.2,3474.1,2.87843]
[1721099862371,1.20817099,3474.3,3474.2,2.87836]
[1721099862737,1.51008641,3474.4,3474.2,2.87836]
[1721099863449,1.50855248,3474.4,3474.2,2.87836]
[1721099863767,2.3416,3474.5,3474.2,2.87836]
[1721099864977,2.3416,3474.5,3474.0,2.87847]
[1721099865336,1.20801351,3474.2,3474.0,2.87847]
[1721099865653,1.20801351,3474.1,3473.7,2.87876]
[1721099865986,0.90595773,3474.0,3473.9,2.87854]
[1721099866141,0.90595773,3474.1,3473.9,2.87854]
[1721099866471,0.90595773,3474.2,3474.0,2.87852]
[1721099866667,0.90595773,3474.1,3474.0,2.87852]
[1721099867038,0.90595773,3474.2,3474.0,2.87852]
[1721099867670,0.90595773,3474.2,3474.1,2.87844]
[1721099868602,0.90584067,3474.2,3474.1,2.87844]
[1721099870021,0.90584067,3474.3,3474.2,2.87836]
[1721099870176,0.9057813,3474.4,3474.3,5.75654]
[1721099870371,1.20801351,3474.5,3474.4,2.87819]
[1721099871071,8.82965428,3474.6,3474.1,2.87843]
[1721099871271,0.90581941,3474.3,3474.2,2.87836]
[1721099872105,1.20775984,3474.4,3474.3,2.87827]
[1721099872518,8.82965428,3474.6,3474.4,2.87819]
[1721099873320,8.52772762,3474.6,3474.5,2.87811]
[1721099873502,7.32,3474.6,3474.5,2.87811]
[1721099873680,8.52772762,3474.6,3474.5,2.87811]
[1721099874915,8.52772762,3474.6,3474.2,2.87836]
[1721099875080,1.20789538,3474.5,3474.4,2.87813]
[1721099877405,1.20789538,3474.6,3474.4,2.87813]
[1721099878371,1.20804127,3474.5,3474.4,2.87813]
[1721099878902,1.20805953,3474.5,3474.4,2.87813]
[1721099879713,1.20805953,3474.5,3474.3,2.87826]
[1721099879900,3.56896925,3474.4,3474.3,2.87826]
[1721099881032,3.56896925,3474.4,3474.0,2.87851]
[1721099881211,0.90618537,3474.2,3473.6,1.016]
[1721099881517,0.90618537,3474.2,3473.7,2.8787]
[1721099881891,0.90618537,3474.2,3473.9,2.87854]
[1721099882120,0.90618537,3474.1,3473.9,2.87854]
[1721099883197,0.90618537,3474.1,3474.0,2.87852]
[1721099884868,0.90618537,3474.1,3474.0,7.450359]
[1721099885020,0.90618537,3474.2,3474.1,5.75688]
[1721099885219,1.20816925,3474.3,3474.2,2.87836]
[1721099885422,1.51063919,3474.5,3474.3,2.87827]
[1721099886231,1.51063919,3474.5,3474.4,2.87819]
[1721099887431,1.51097229,3474.5,3474.4,2.87819]
[1721099889667,1.20910539,3474.5,3474.4,6.433643]
[1721099890189,1.51097229,3474.5,3474.4,6.433643]
[1721099890335,1.51097229,3474.5,3474.4,2.87819]
[1721099891376,1.51153421,3474.5,3474.4,2.87819]
[1721099892082,2.494,3474.6,3474.2,2.87834]
[1721099892234,1.51185267,3474.4,3474.2,2.87834]
[1721099893781,1.51197897,3474.4,3474.2,2.87834]
[1721099893998,2.494,3474.6,3474.3,2.87827]
[1721099894283,1.51197929,3474.4,3474.3,2.87827]
[1721099895080,2.3732,3474.3,3474.0,2.87852]
[1721099895249,1.20960375,3474.1,3474.0,2.87852]
[1721099899177,1.20960375,3474.1,3473.8,2.87868]
[1721099899373,1.20960375,3473.9,3473.8,2.87868]
[1721099899610,1.20960375,3474.0,3473.8,2.87868]
[1721099899918,1.20960375,3473.9,3473.8,2.87868]
[1721099902496,1.51212028,3473.9,3473.8,2.87868]
[1721099902965,4.18774433,3474.3,3473.9,2.8786]
[1721099903159,1.51210665,3474.0,3473.9,2.8786]
[1721099903788,2.3732,3474.3,3473.9,2.8786]
[1721099903984,1.51205804,3474.0,3473.9,2.8786]
[1721099907186,1.51177457,3474.0,3473.9,2.8786]
[1721099907391,1.51177457,3474.1,3473.9,2.8786]
[1721099907591,1.51177457,3474.0,3473.9,2.8786]
[1721099907804,1.51177457,3474.1,3473.9,2.8786]
[1721099908112,1.51177457,3474.0,3473.9,2.8786]
[1721099908632,2.408,3473.9,3473.2,2.87913]
[1721099908917,0.56991041,3474.0,3473.0,2.87929]
[1721099908918,1.20941806,3473.3,3473.0,2.87929]
[1721099909093,0.90715791,3473.1,3473.0,2.87929]
[1721099909291,1.51177257,3473.3,3473.0,2.87929]
[1721099909515,1.51177257,3473.1,3472.7,2.87959]
[1721099909719,0.90673287,3472.8,3472.7,2.87959]
[1721099910296,2.408,3473.4,3472.7,2.87959]
[1721099910497,0.90670634,3472.9,3472.7,2.87959]
[1721099910792,0.90670634,3472.9,3472.7,3.89559]
[1721099910986,0.90670634,3472.8,3472.7,3.89559]
[1721099911185,1.20894179,3473.0,3472.8,2.87952]
[1721099911394,0.90584574,3472.9,3472.8,2.87952]
[1721099912119,0.90584574,3473.0,3472.8,2.87952]
[1721099912823,0.90584574,3473.1,3472.8,2.87952]
[1721099913611,2.408,3473.4,3472.8,2.87952]
[1721099913830,0.90514855,3473.1,3472.8,2.87952]
[1721099914334,0.90514855,3473.2,3472.8,2.87952]
[1721099914490,3.31314855,3473.4,3473.1,2.87923]
[1721099916488,3.31314855,3473.4,3472.9,2.87942]
[1721099917028,4.74960797,3473.4,3472.9,2.87942]
[1721099917525,4.74960797,3473.4,3473.0,2.87933]
[1721099918603,3.31314855,3473.4,3473.0,2.87933]
[1721099919317,2.408,3473.4,3473.0,2.87933]
[1721099924006,2.408,3473.4,3472.8,2.87951]
[1721099924219,2.3789,3473.3,3472.6,2.87968]
[1721099924533,2.3789,3473.1,3472.6,2.87968]
[1721099924905,3.28308698,3473.1,3472.6,2.87968]
[1721099925104,0.90418698,3473.0,3472.6,2.87968]
[1721099925309,0.90418698,3472.9,3472.4,2.87984]
[1721099925498,0.90418698,3472.8,3472.4,2.87984]
[1721099927327,0.90418698,3472.9,3472.4,2.87984]
[1721099929241,0.90418698,3473.0,3472.4,2.87984]
[1721099929438,0.90418698,3472.9,3472.4,2.87984]
[1721099929603,0.90418698,3473.0,3472.4,2.87984]
[1721099930301,2.2971,3472.9,3472.4,2.87984]
[1721099930742,2.2971,3472.9,3472.2,2.88001]
[1721099931429,2.2971,3472.9,3472.4,2.87983]
[1721099931722,3.12713727,3472.9,3472.4,2.87983]
[1721099932125,4.0305927,3472.9,3472.2,2.88001]
[1721099932332,4.0305927,3472.9,3472.3,2.87993]
[1721099932534,4.0305927,3472.9,3472.1,2.88005]
[1721099932746,1.016,3472.6,3472.1,2.88005]
[1721099933064,2.4697,3472.5,3472.1,2.88005]
[1721099933205,2.4697,3472.5,3472.2,2.88001]
[1721099933607,2.4697,3472.5,3472.0,2.88018]
[1721099933815,2.4697,3472.5,3472.1,0.389618]
[1721099934223,2.4697,3472.5,3472.3,2.87991]
[1721099935334,3.39883261,3472.9,3472.5,2.87976]
[1721099935727,0.90323261,3473.0,3472.6,2.87967]
[1721099935938,9.5951,3473.1,3472.9,3.89537]
[1721099935939,7.32,3473.1,3472.9,3.89537]
[1721099936146,2.2751,3473.4,3473.0,2.87929]
[1721099938039,2.2751,3473.4,3472.8,2.87947]
[1721099938247,3.17821331,3473.4,3472.8,2.87947]
[1721099938417,3.17821331,3473.4,3472.9,2.87942]
[1721099939321,3.17849599,3473.4,3473.0,2.87934]
[1721099939746,2.2751,3473.4,3473.0,2.87934]
[1721099939920,2.2751,3473.4,3473.0,5.75863]
[1721099940250,2.2751,3473.4,3473.0,2.87929]
[1721099940610,0.90339599,3473.5,3473.2,2.87917]
[1721099940821,2.2511,3473.7,3473.2,2.87917]
[1721099941150,0.90358143,3473.6,3473.2,2.87917]
[1721099942340,0.90358143,3473.5,3473.2,2.87917]
[1721099944246,0.90358143,3473.4,3473.0,2.87931]
[1721099944445,2.4645,3473.3,3473.1,2.87927]
[1721099944660,3.36808143,3473.3,3473.1,2.87927]
[1721099944969,3.36808143,3473.3,3473.2,2.87918]
[1721099945346,0.90358143,3473.3,3473.2,2.87918]
[1721099945532,1.20477525,3473.4,3473.2,2.87918]
[1721099947526,0.90483051,3473.5,3473.4,2.87902]
[1721099947843,0.90483051,3473.9,3473.7,2.87877]
[1721099948026,0.90483051,3474.0,3473.6,1.016]
[1721099948233,0.90483051,3473.9,3473.7,2.87877]
[1721099948429,0.90483051,3473.9,3473.8,2.87869]
[1721099948851,3.33453051,3473.9,3473.5,2.87893]
[1721099951079,3.33453051,3473.9,3473.6,2.87884]
[1721099951446,0.90483051,3473.9,3473.6,2.87884]
[1721099952247,0.90483051,3473.8,3473.6,2.87884]
[1721099952444,3.34813051,3473.7,3473.4,2.87902]
[1721099954786,3.34813051,3473.7,3473.5,2.87893]
[1721099955552,0.90483051,3473.7,3473.5,2.87893]
[1721099956088,0.9052171,3473.7,3473.5,2.87893]
[1721099956262,0.9052171,3473.8,3473.5,2.87893]
[1721099956962,0.9052171,3473.8,3473.6,2.87884]
[1721099957347,0.9052171,3473.8,3473.7,2.87877]
[1721099957562,1.20695613,3474.0,3473.7,2.87877]
[1721099957563,0.9052171,3473.9,3473.7,2.87877]
[1721099958088,0.9052171,3473.8,3473.7,2.87877]
[1721099958987,3.3849171,3473.8,3473.5,2.87892]
[1721099962566,3.3849171,3473.8,3473.6,2.87884]
[1721099962995,0.9052171,3473.8,3473.6,2.87884]
[1721099964965,0.9052171,3473.7,3473.6,2.87884]
[1721099965576,0.9052171,3473.8,3473.6,2.87884]
[1721099965960,0.9052171,3473.8,3473.7,2.87877]
[1721099966259,0.9052171,3473.9,3473.8,2.87868]
[1721099967003,0.9052171,3474.0,3473.8,2.87868]
[1721099969403,3.3849171,3474.1,3473.8,2.87868]
[1721099969710,2.4797,3474.1,3473.8,2.87868]
[1721099970000,0.9052171,3474.2,3473.9,2.87859]
[1721099970369,0.9052171,3474.3,3473.9,2.87859]
[1721099970570,0.9052171,3474.3,3474.0,2.87852]
[1721099970898,0.9052171,3474.1,3474.0,2.87852]
[1721099971096,0.9052171,3474.1,3473.8,2.87867]
[1721099971709,2.3231,3474.0,3473.8,2.87867]
[1721099972005,3.2283171,3474.0,3473.8,2.87867]
[1721099972211,2.3231,3474.0,3473.8,2.87867]
[1721099972997,3.22735282,3474.0,3473.8,2.87867]
[1721099973206,0.90425282,3473.9,3473.6,2.87885]
[1721099973380,0.9044698,3473.8,3473.6,2.87885]
[1721099974528,0.9044698,3473.9,3473.6,2.87885]
[1721099975698,3.2275698,3474.0,3473.7,2.87877]
[1721099975882,0.9044698,3473.9,3473.7,2.87877]
[1721099976622,0.9044698,3473.9,3473.4,2.87901]
[1721099976800,0.9044698,3473.9,3473.6,2.8788]
[1721099977828,0.9044698,3473.9,3473.7,2.87876]
[1721099978329,0.9044698,3473.8,3473.7,2.87876]
[1721099979026,0.9044698,3473.9,3473.7,2.87876]
[1721099979525,0.9044698,3473.8,3473.7,2.87876]
[1721099980311,1.20567043,3473.9,3473.7,2.87876]
[1721099981403,1.20567043,3473.8,3473.7,2.87876]
[1721099981731,1.20567043,3473.8,3473.5,2.87888]
[1721099981895,0.9060499,3473.7,3473.5,2.87888]
[1721099982322,1.20567043,3473.8,3473.6,2.87885]
[1721099984823,1.20567043,3473.7,3473.6,2.87885]
[1721099985252,1.20567043,3473.7,3473.4,2.87901]
[1721099985409,3.18750775,3473.5,3473.2,2.87916]
[1721099985740,0.90640775,3473.4,3473.3,2.87907]
[1721099986102,0.90655213,3473.4,3473.3,2.87907]
[1721099986732,2.2811,3473.5,3473.3,2.87907]
[1721099986733,3.48983618,3473.5,3473.3,2.87907]
[1721099987056,0.9065756,3473.4,3473.3,2.87907]
[1721099987743,0.9065756,3473.4,3473.1,3.89519]
[1721099987952,0.9065756,3473.3,3473.1,3.89519]
[1721099988150,0.9065756,3473.3,3473.2,2.87918]
[1721099988311,0.90675918,3473.3,3473.2,2.87918]
[1721099988511,0.9067514,3473.3,3473.2,2.87918]
[1721099989049,1.20873618,3473.4,3473.2,2.87918]
[1721099991232,1.20873618,3473.3,3473.2,2.87918]
[1721099992149,1.20873618,3473.4,3473.2,2.87918]
[1721099992354,3.79251174,3473.5,3473.2,2.87918]
[1721099992355,1.20873618,3473.3,3473.2,2.87918]
[1721099993275,1.20969436,3473.3,3473.2,2.87918]
[1721099993435,1.20969436,3473.3,3472.2,3.48217472]
[1721099993622,0.90750331,3473.1,3473.0,2.87931]
[1721099996358,0.90750331,3473.2,3473.1,5.75854]
[1721099996645,0.90750331,3473.2,3473.1,6.77454]
[1721099997674,1.20969436,3473.3,3473.2,2.87915]
[1721099997878,4.30464382,3473.8,3473.3,2.8791]
[1721099997879,1.20969436,3473.4,3473.3,2.8791]
[1721099998545,1.51236985,3473.5,3473.4,2.87895]
[1721099998744,4.30464382,3473.8,3473.4,2.87895]
[1721099998745,1.51236985,3473.6,3473.4,2.87895]
[1721099999278,2.4898,3473.8,3473.5,2.87894]
[1721099999489,1.51217191,3473.6,3473.5,2.87894]
[1721099999648,1.51217079,3473.6,3473.5,2.87894]
[1721100000062,2.4898,3473.8,3473.5,2.87894]
[1721100000063,1.51213272,3473.7,3473.5,2.87894]
[1721100000440,1.51213272,3473.6,3473.5,2.87894]
[1721100000646,1.51213272,3473.7,3473.5,2.87894]
[1721100000848,1.51213272,3473.6,3473.5,2.87894]
[1721100001043,2.4898,3473.8,3473.5,2.87894]
[1721100001044,1.51213272,3473.7,3473.5,2.87894]
[1721100001352,1.20963812,3473.6,3473.5,2.87894]
[1721100001556,1.51213272,3473.7,3473.5,2.87894]
[1721100002078,1.51210973,3473.6,3473.5,2.87894]
[1721100002380,7.32,3474.1,3473.8,2.87865]
[1721100002549,7.32,3474.1,3473.9,2.87859]
[1721100003381,1.51194934,3474.0,3473.9,2.87859]
[1721100003981,2.3232,3474.2,3473.7,2.87876]
[1721100004146,1.5119133,3473.9,3473.8,2.87867]
[1721100004776,2.4412,3473.8,3473.5,2.87887]
[1721100005081,1.20956151,3473.6,3473.5,2.87887]
[1721100008443,1.20956261,3473.6,3473.5,2.87887]
[1721100008642,1.20956261,3473.6,3473.3,2.87907]
[1721100008885,0.9071861,3473.4,3473.3,2.87907]
[1721100011291,2.4469,3473.3,3473.1,2.87926]
[1721100011581,1.20966888,3473.2,3473.1,2.87926]
[1721100012086,3.95899073,3473.3,3473.1,2.87926]
[1721100012391,1.20969567,3473.2,3473.1,2.87926]
[1721100012710,1.51209073,3473.2,3472.9,2.87942]
[1721100012910,1.20962633,3473.0,3472.9,2.87942]
[1721100013893,1.51209073,3473.1,3472.9,2.87942]
[1721100014074,1.89110157,3473.1,3472.7,2.87959]
[1721100014260,1.20947953,3472.8,3472.7,2.87959]
[1721100014465,1.51209073,3472.9,3472.7,2.87959]
[1721100014698,2.411,3472.7,3472.3,2.87992]
[1721100014875,2.411,3472.7,3472.1,2.88008]
[1721100015091,0.90699803,3472.2,3472.1,2.88008]
[1721100015404,1.20934301,3472.3,3472.1,2.88008]
[1721100015611,3.041635,3472.7,3472.1,2.88008]
[1721100015612,0.90650744,3472.2,3472.1,2.88008]
[1721100015902,1.20934301,3472.4,3472.3,2.87993]
[1721100015903,0.89818946,3472.4,3472.3,2.87993]
[1721100016108,1.20934301,3472.6,3472.3,2.87993]
[1721100016670,1.20934301,3472.4,3471.9,2.88026]
[1721100016974,1.20934301,3472.4,3472.1,2.88003]
[1721100017180,1.20934301,3472.5,3472.1,2.88003]
[1721100017375,1.20934301,3472.6,3472.2,2.88]
[1721100017581,3.62034301,3472.7,3472.2,2.88]
[1721100017805,1.20934301,3472.6,3472.2,2.88]
[1721100019430,3.62034301,3472.7,3472.2,2.88]
[1721100020810,2.71918846,3472.9,3472.5,2.8797]
[1721100021136,3.48824301,3473.0,3472.5,3.8957]
[1721100021358,2.2789,3473.0,3472.5,3.8957]
[1721100022759,2.2789,3473.0,3472.6,2.87962]
[1721100023042,3.67904301,3473.3,3473.0,2.87934]
[1721100023205,1.20934301,3473.4,3473.0,2.87934]
[1721100024037,1.20934301,3473.2,3472.8,2.8795]
[1721100024240,1.20934301,3473.3,3472.9,2.87942]
[1721100024602,1.20934301,3473.2,3472.9,2.87942]
[1721100025100,0.90501826,3473.1,3472.9,2.87942]
[1721100025820,0.90501826,3473.1,3473.0,2.87935]
[1721100026111,0.90501826,3473.2,3473.0,2.87935]
[1721100026545,0.90501826,3473.1,3473.0,2.87935]
[1721100026839,0.90501826,3473.2,3473.0,2.87935]
[1721100026998,0.90501826,3473.3,3473.0,2.87935]
[1721100027204,0.90501826,3473.2,3473.0,2.87935]
[1721100027447,0.90501826,3473.3,3473.0,2.87935]
[1721100027604,0.90501826,3473.2,3473.0,2.87935]
[1721100028009,2.4697,3473.6,3473.0,2.87935]
[1721100028251,0.90501588,3473.3,3473.0,2.87935]
[1721100028456,0.90501588,3473.2,3473.0,2.87935]
[1721100029011,0.90501588,3473.1,3473.0,2.87935]
[1721100029846,0.90501588,3473.1,3472.7,2.87958]
[1721100029847,2.3429,3473.1,3472.7,2.87958]
[1721100030140,0.90513148,3473.0,3472.7,2.87958]
[1721100031066,0.90513148,3472.9,3472.5,2.87974]
[1721100031213,2.3429,3473.1,3472.5,2.87974]
[1721100031415,0.90515494,3472.9,3472.6,2.87966]
[1721100032414,0.90515494,3473.0,3472.6,2.87966]
[1721100034126,0.90515494,3472.9,3472.6,2.87966]
[1721100034864,0.90515494,3473.0,3472.6,2.87966]
[1721100035063,0.90515494,3472.9,3472.6,2.87966]
[1721100035239,0.90515494,3473.0,3472.6,2.87966]
[1721100035581,0.90515494,3472.9,3472.6,2.87966]
[1721100036166,0.90515494,3472.9,3472.7,2.87959]
[1721100036337,0.90515494,3473.0,3472.7,2.87959]
[1721100038163,3.24799012,3473.1,3472.7,5.75918]
[1721100038361,0.90509012,3473.0,3472.8,2.8795]
[1721100038664,3.24799012,3473.1,3472.7,2.87959]
[1721100038826,0.90509012,3473.0,3472.7,2.87959]
[1721100039158,0.90509012,3473.0,3472.8,2.87951]
[1721100039537,3.24799012,3473.1,3472.8,2.87951]
[1721100040534,0.90509012,3473.0,3472.8,2.87951]
[1721100040928,3.24799012,3473.1,3472.8,2.87951]
[1721100041331,0.9050803,3473.0,3472.8,2.87951]
[1721100041563,3.2479803,3473.1,3472.8,2.87951]
[1721100043257,3.2479803,3473.1,3472.7,2.87958]
[1721100043461,0.9050803,3473.0,3472.7,2.87958]
[1721100044193,0.9050803,3473.0,3472.8,2.87949]
[1721100045404,0.9050803,3472.9,3472.8,2.87949]
[1721100045709,0.9050803,3473.0,3472.8,2.87949]
[1721100045999,3.2479803,3473.1,3472.8,2.87949]
[1721100046166,0.9050803,3473.0,3472.8,2.87949]
[1721100046515,3.2479803,3473.1,3472.8,2.87949]
[1721100047594,0.9050803,3473.0,3472.8,2.87949]
[1721100048592,0.90535947,3473.0,3472.8,2.87949]
[1721100049509,0.90535947,3472.9,3472.8,2.87949]
[1721100053530,1.20714597,3473.0,3472.8,2.87949]
[1721100055534,1.20714597,3472.9,3472.8,2.87949]
[1721100057700,1.20714597,3472.9,3472.8,5.75901]
[1721100057914,1.81407424,3473.5,3473.1,2.8792]
[1721100058123,1.81407424,3473.4,3473.1,2.8792]
[1721100058309,1.81411184,3473.4,3473.2,2.87918]
[1721100058541,1.81411184,3473.5,3473.2,2.87918]
[1721100059623,9.7985,3473.6,3473.2,2.87918]
[1721100061587,7.32,3473.6,3473.5,3.89494]
[1721100061731,7.32,3473.6,3473.5,6.77388]
[1721100062358,7.32,3473.6,3473.5,9.77388]
[1721100062712,7.32,3474.2,3474.1,2.87844]
[1721100062908,2.4785,3474.7,3474.1,3.89444]
[1721100063215,2.4785,3474.7,3474.1,1.016]
[1721100063413,2.4785,3474.7,3474.4,2.87819]
[1721100064341,7.32,3474.8,3474.4,2.87819]
[1721100068752,7.32,3474.8,3474.1,3.20753]
[1721100068946,7.32,3474.8,3474.2,2.87833]
[1721100069539,7.32,3474.8,3473.5,3.0]
[1721100069540,2.4449,3474.4,3473.5,3.0]
[1721100069854,0.64204247,3474.3,3473.7,2.87874]
[1721100070056,2.4449,3474.4,3473.7,2.87874]
[1721100070431,2.4449,3474.4,3473.5,2.87893]
[1721100070666,2.4449,3474.4,3473.6,2.87882]
[1721100070823,2.87834,3474.3,3473.5,2.87892]
[1721100071620,2.4765,3474.1,3473.1,3.89527]
[1721100071823,2.4765,3474.1,3471.7,4.537]
[1721100071824,2.4765,3473.7,3472.9,3.89543]
[1721100072089,2.4765,3473.7,3473.1,2.87926]
[1721100072361,3.3805127,3473.7,3473.1,2.87926]
[1721100072770,2.4765,3473.7,3473.2,1.016]
[1721100072978,2.4765,3473.7,3473.1,2.87926]
[1721100073625,4.126954,3473.7,3473.1,2.87926]
[1721100075157,4.126954,3473.7,3472.9,2.87943]
[1721100075461,3.3805127,3473.7,3473.0,2.87934]
[1721100076230,3.3805127,3473.7,3472.9,2.87942]
[1721100076641,3.3805127,3473.7,3472.8,1.016]
[1721100076642,3.3805127,3473.7,3473.0,2.87934]
[1721100077048,3.38060448,3473.7,3473.0,2.87934]
[1721100079377,0.90410448,3473.6,3473.0,2.87934]
[1721100079673,3.38060448,3473.7,3473.0,2.87934]
[1721100080404,3.38060448,3473.7,3473.0,5.75868]
[1721100080576,3.38060448,3473.7,3473.1,3.556728]
[1721100081241,3.38060448,3473.7,3473.1,2.87926]
[1721100082891,0.90410448,3473.6,3473.1,2.87926]
[1721100084296,2.3653,3473.5,3472.8,2.87951]
[1721100084516,0.90410448,3473.3,3472.8,2.87951]
[1721100085004,3.26940448,3473.1,3472.5,2.87975]
[1721100085803,0.90410448,3473.0,3472.5,2.87975]
[1721100086093,3.26940448,3473.1,3472.5,2.87975]
[1721100086681,3.26940448,3473.1,3472.6,2.87968]
[1721100086891,2.3653,3473.1,3472.6,2.87962]
[1721100087065,2.3653,3473.1,3472.6,3.55717]
[1721100088259,2.3653,3473.1,3472.6,2.87962]
[1721100091677,3.26984694,3473.1,3472.6,2.87962]
[1721100094207,6.18247207,3473.1,3472.3,2.87992]
[1721100094417,0.90454694,3472.9,3472.3,2.87992]
[1721100094716,0.90454694,3473.0,3472.3,2.87992]
[1721100094869,1.84085771,3473.0,3472.3,2.87992]
[1721100095074,0.90454694,3472.9,3472.3,2.87992]
[1721100095971,2.4527,3472.8,3472.3,2.87992]
[1721100098707,2.4527,3472.6,3472.1,2.88004]
[1721100099018,3.35714474,3472.6,3472.1,2.88004]
[1721100099222,0.90444474,3472.5,3472.1,2.88004]
[1721100099429,3.35714474,3472.6,3472.1,2.88004]
[1721100099730,0.90444474,3472.5,3472.1,2.88004]
[1721100100093,2.4527,3472.6,3472.1,2.88004]
[1721100100436,0.90430092,3472.5,3472.1,2.88004]
[1721100100792,3.35700092,3472.6,3472.1,2.88004]
[1721100101014,0.90430092,3472.5,3472.1,2.88004]
[1721100101216,3.35700092,3472.6,3472.1,2.88004]
[1721100101615,2.4952,3472.5,3471.7,2.88038]
[1721100101823,2.4952,3472.5,3470.9,10.15102]
[1721100101824,3.5112,3472.0,3470.9,7.27]
[1721100102097,3.18110092,3471.9,3471.2,2.88084]
[1721100102907,0.90430092,3471.8,3471.2,2.88084]
[1721100103602,3.18110092,3471.9,3471.2,2.88084]
[1721100104431,2.2768,3471.9,3471.2,2.88084]
[1721100105199,2.2768,3471.9,3471.3,2.88075]
[1721100105527,2.2768,3471.9,3471.5,3.89659]
[1721100105690,2.2768,3471.9,3471.5,2.88059]
[1721100107823,2.2768,3471.9,3471.6,2.88048]
[1721100108156,2.4604,3472.3,3471.6,3.89648]
[1721100108314,2.49369521,3472.3,3471.6,3.89648]
[1721100109014,2.49369521,3472.3,3471.6,6.77696]
[1721100109448,0.03329521,3472.3,3472.1,2.88006]
[1721100110724,0.03329521,3472.3,3472.0,2.88017]
[1721100114218,0.03329521,3472.3,3472.1,2.88002]
[1721100121035,0.03329521,3472.3,3471.9,2.88025]
[1721100121529,2.4192,3472.2,3472.0,2.88017]
[1721100121755,2.4192,3472.2,3472.1,2.8801]
[1721100123647,2.4192,3472.2,3472.0,2.88016]
[1721100124270,2.4192,3472.2,3472.1,2.8801]
[1721100128574,0.03329521,3472.3,3472.1,0.677634]
[1721100128745,0.90384387,3472.8,3472.1,1.693634]
[1721100128948,0.90384387,3472.9,3472.7,3.8956]
[1721100129158,2.4115,3473.2,3472.7,3.8956]
[1721100129356,0.90469315,3473.0,3472.8,2.87952]
[1721100129685,0.90469315,3473.0,3472.9,2.87943]
[1721100129686,0.9048339,3473.0,3472.9,2.87943]
[1721100129841,1.2064452,3473.1,3473.0,2.87935]
[1721100129842,0.90486018,3473.1,3473.0,2.87935]
[1721100132638,3.6179452,3473.2,3473.1,2.87927]
[1721100133072,2.4115,3473.2,3473.1,2.87927]
[1721100135668,3.6179452,3473.2,3473.1,2.87927]
[1721100136074,2.4115,3473.2,3472.9,3.89541]
[1721100136376,0.90490999,3473.1,3472.8,2.8795]
[1721100136890,0.90490999,3473.1,3472.9,2.87942]
[1721100137091,0.90490999,3473.1,3472.9,3.89542]
[1721100137910,0.90490999,3473.1,3473.0,5.7587]
[1721100138182,0.90490999,3473.4,3473.2,2.87918]
[1721100138487,0.90490999,3473.5,3473.4,2.87902]
[1721100138684,0.90490999,3473.6,3473.4,2.87902]